[Event "LEM Niedersachsen-Meister 2025"]
[Site "Verden"]
[Date "2025.01.02"]
[Round "2.1"]
[White "Abel, Dennes"]
[Black "Riemay, David"]
[Result "1-0"]
[ECO "A84"]
[WhiteElo "2381"]
[BlackElo "2243"]
[Annotator "TA"]
[PlyCount "65"]
[EventDate "2024.12.27"]
[EventType "swiss"]
[EventCountry "GER"]
[SourceTitle "playchess.com"]
[Source "ChessBase"]
[SourceQuality "1"]
[TimeControl "40/5400+30:1800+30"]

{[%evp 10,65,21,18,42,-12,14,0,2,5,18,0,7,6,4,18,52,47,51,51,38,50,44,46,59,52,74,79,130,116,106,84,177,141,157,118,125,101,93,87,129,57,43,54,398,400,365,339,381,397,403,381,537,461,461,461,588,542]} 1. Nf3 {[%emt 0:00:06]} d6 {[%emt 0:00:03]} 2. d4 {[%emt 0:00:36]} g6 {[%emt 0:00:10]} 3. c4 {[%emt 0:01:03]} f5 {[%emt 0:00:05]} 4. b3 {[%emt 0:01:54]} Nf6 {[%emt 0:00:21]} 5. Bb2 {[%emt 0:00:31]} Bg7 {[%emt 0:00:10]} 6. g3 {[%emt 0:01:52]} O-O {[%emt 0:00:07]} 7. Qc2 {[%emt 0:03:07]} (7. Bg2 $14) 7... c6 {[%emt 0:00:45]} 8. Bg2 {[%emt 0:04:41]} a5 {[%emt 0:00:12]} 9. O-O {[%emt 0:02:41]} Na6 {[%emt 0:00:13]} 10. Nbd2 {[%emt 0:06:52]} Qc7 {[%emt 0:00:53]} 11. a3 {[%emt 0:04:49]} Re8 {[%emt 0:00:38]} 12. e4 {[%emt 0:04:47]} e5 {[%emt 0:00:09]} 13. c5 {[%emt 0:05:11]} dxc5 {[%emt 0:08:56]} (13... exd4 $2 14. cxd6 Qxd6 15. e5 (15. Bxd4 fxe4 16. Bxf6 exf3 $17) (15. Nxd4 Nxe4 16. Nc4 Qc5 $11) 15... Rxe5 16. Nxe5 (16. Bxd4 Rd5 $16) (16. Nxd4 Qc5 $11) 16... Qxe5 17. Rfd1 $16) 14. dxe5 {[%emt 0:03:55]} Nxe4 {[%emt 0:00:12]} 15. Nxe4 {[%emt 0:17:41]} fxe4 {[%emt 0:00:10]} 16. Qxe4 {[%emt 0:00:38]} Be6 {[%emt 0:02:02]} 17. Qe3 {[%emt 0:02:53]} Rad8 {[%emt 0:01:57]} 18. Ng5 {[%emt 0:07:55]} Bd5 {[%emt 0:02:25]} (18... Bf5 $142) 19. f4 $16 {[%emt 0:01:05]} Bxg2 {[%emt 0:05:08]} 20. Kxg2 {[%emt 0:00:11]} a4 {[%emt 0:00:17]} 21. Rf2 {[%emt 0:08:47]} b5 {[%emt 0:05:10]} 22. bxa4 {[%emt 0:02:41]} c4 {[%emt 0:01:07]} 23. Ne4 {[%emt 0:03:01] White is more active.} Rd3 {[%emt 0:03:16]} 24. Qe2 {[%emt 0:00:05] and f5 would now be decisive} Qd7 {[%emt 0:04:41] [#]} 25. Rc1 {[%emt 0:02:25]} (25. axb5 $1 $16 cxb5 26. h4) 25... Qd5 $14 {[%emt 0:01:09] Threatens to win with ...Nc5.} 26. Kg1 {[%emt 0:00:14][%cal Bg2g1,Bg1f2,Bf2e3][%mdl 32]} Nc5 $2 {[%emt 0:02:15][%mdl 8192] [#]} (26... Rd8 $14) 27. Nxc5 $1 $18 {[%emt 0:01:47]} Qxc5 {[%emt 0:02:16]} 28. Qxd3 {[%emt 0:00:44]} Qxf2+ {[%emt 0:00:17]} 29. Kxf2 {[%emt 0:00:04]} cxd3 {[%emt 0:00:05]} 30. axb5 {[%emt 0:00:45] KRB-KRB. White is two pawns up.} (30. Rxc6 Rd8 31. Ke1 (31. axb5 $2 {perishes.} d2 $19) 31... d2+ 32. Kd1 bxa4 $18) 30... Rb8 {[%emt 0:04:57]} (30... cxb5 {is a better defense.} 31. Ke3 Rd8) 31. Ke3 {[%emt 0:01:30]} Rxb5 {[%emt 0:00:30]} 32. Bd4 {[%emt 0:00:14]} Bf8 {[%emt 0:08:14]} 33. Rxc6 {[%emt 0:01:27]} 1-0

[Event "LEM Niedersachsen-Meister 2025"]
[Site "Verden"]
[Date "2025.01.02"]
[Round "2.2"]
[White "Polster, Christian"]
[Black "Hampel, Felix"]
[Result "1-0"]
[ECO "B48"]
[WhiteElo "2252"]
[BlackElo "2343"]
[Annotator "TA"]
[PlyCount "125"]
[EventDate "2024.12.27"]
[EventType "swiss"]
[EventCountry "GER"]
[SourceTitle "playchess.com"]
[Source "ChessBase"]
[SourceQuality "1"]
[TimeControl "40/5400+30:1800+30"]

{[%evp 36,125,0,0,0,0,0,0,0,-19,-14,-37,-26,-32,0,0,0,0,0,0,0,0,41,26,134,139,160,151,155,152,141,162,198,177,203,131,140,134,204,183,220,66,93,39,68,67,85,0,8,0,0,0,0,0,0,0,0,0,0,0,0,0,0,0,0,0,0,0,0,0,0,8,8,0,0,0,797,789,994,1002,936,991,1014,847,5616,9975,29986,29987,29987,29988,29989,29990]} 1. e4 {[%emt 0:00:02]} c5 {[%emt 0:00:09]} 2. Nf3 {[%emt 0:00:10]} e6 {[%emt 0:00:07]} 3. d4 {[%emt 0:00:42]} cxd4 {[%emt 0:00:07]} 4. Nxd4 {[%emt 0:00:05]} Nc6 {[%emt 0:00:07]} 5. Nc3 {[%emt 0:00:36]} Qc7 {[%emt 0:00:09]} 6. Be3 {[%emt 0:01:21]} a6 {[%emt 0:00:07]} 7. a3 {[%emt 0:00:23]} b5 {[%emt 0:00:26]} 8. f4 {[%emt 0:06:08]} Na5 {[%emt 0:05:33]} 9. Nf3 {[%emt 0:19:06]} Nc4 {[%emt 0:04:53]} 10. Bxc4 {[%emt 0:02:30]} Qxc4 {[%emt 0:01:36]} 11. Ne5 {[%emt 0:02:17]} Qc7 {[%emt 0:00:34]} 12. O-O {[%emt 0:01:34]} Nf6 {[%emt 0:04:53]} 13. Ng4 {[%emt 0:06:08]} Bc5 {[%emt 0:13:17]} 14. Nxf6+ {[%emt 0:05:12]} gxf6 {[%emt 0:01:26]} 15. Qf3 {[%emt 0:00:32]} Bb7 {[%emt 0:02:40]} 16. Qf2 {[%emt 0:03:20]} Rc8 {[%emt 0:07:49]} 17. f5 {[%emt 0:04:48]} Rg8 {[%emt 0:18:24]} 18. Kh1 {[%emt 0:03:22]} Bxe3 {[%emt 0:03:00]} 19. Qxe3 {[%emt 0:00:07]} Qe5 {[%emt 0:01:01]} 20. Rae1 {[%emt 0:03:17]} Ke7 {[%emt 0:06:34]} 21. Re2 {[%emt 0:11:42]} Rg4 {[%emt 0:03:07]} 22. fxe6 {[%emt 0:07:57]} fxe6 {[%emt 0:01:17]} 23. Qh6 {[%emt 0:00:35]} (23. Qd3 $5) 23... Rcg8 {[%emt 0:02:38]} (23... Bxe4 $2 24. Nxe4 Rh8 25. c3 $18 (25. Qxf6+ Qxf6 26. Nxf6 Rg6 $18)) 24. Qxh7+ {[%emt 0:00:40]} R8g7 {[%emt 0:02:15]} 25. Qh6 {[%emt 0:02:16]} R7g6 {[%emt 0:04:37]} 26. Qh7+ {[%emt 0:05:33]} Rg7 {[%emt 0:00:01]} 27. Qh6 {[%emt 0:00:13]} f5 {[%emt 0:03:34]} 28. h3 {[%emt 0:02:28]} R4g5 {[%emt 0:05:40]} (28... Rg8 $5) 29. Qh4 {[%emt 0:01:57]} Kd6 {[%emt 0:01:23] [#]} (29... Qg3 $11 {remains equal.} 30. Qxg3 Rxg3) 30. Rff2 $1 $16 {[%emt 0:02:19]} fxe4 {[%emt 0:03:22]} 31. Nxe4+ {[%emt 0:03:27]} Bxe4 {[%emt 0:00:02]} 32. Qxe4 {[%emt 0:00:12]} (32. Rxe4 $6 Qxb2 33. Re1 Qxa3 $11) 32... Qxe4 {[%emt 0:03:52]} 33. Rxe4 {[%emt 0:00:02]} e5 {[%emt 0:00:23]} 34. g4 {[%emt 0:03:19]} Ke6 {[%emt 0:00:25]} 35. a4 {[%emt 0:01:01]} d5 {[%emt 0:01:29]} 36. Rb4 {[%emt 0:00:09]} Kd6 {[%emt 0:00:39]} (36... Rb7 $16 {might work better.} 37. Kg2 e4) 37. axb5 $18 {[%emt 0:02:32]} Kc5 {[%emt 0:00:13]} 38. Ra4 $2 {[%emt 0:00:23]} (38. Rb3 $18 axb5 39. Rc3+ Kb4 40. Kh2) 38... axb5 $14 {[%emt 0:00:03]} 39. Ra8 {[%emt 0:00:15]} (39. Ra1 $16) 39... e4 $14 {[%emt 0:01:14]} 40. Kg2 {[%emt 0:00:48]} b4 {[%emt 0:00:52] [#]} 41. Rd2 {[%emt 0:03:22]} ({Better is} 41. Kg3 $1 $16) 41... Re5 {[%emt 0:05:22]} 42. Rc8+ {[%emt 0:02:03]} Kd6 {[%emt 0:07:14]} 43. Rd8+ {[%emt 0:05:23]} Kc5 {[%emt 0:01:31]} 44. Rc8+ {[%emt 0:02:01]} Kd6 {[%emt 0:00:06]} 45. Rb8 {[%emt 0:00:09]} e3 {[%emt 0:05:14]} 46. Re2 {[%emt 0:00:42]} Re4 {[%emt 0:00:03]} 47. Rf8 {[%emt 0:04:00]} Kc5 {[%emt 0:03:42]} 48. b3 {[%emt 0:04:52]} Kd4 {[%emt 0:01:10]} 49. Rf5 {[%emt 0:02:36]} Re8 {[%emt 0:04:03]} 50. Kg3 {[%emt 0:01:07]} Re4 {[%emt 0:02:35]} 51. g5 {[%emt 0:02:21]} Rh7 {[%emt 0:00:19]} 52. g6 {[%emt 0:05:18]} Rg7 $1 {[%emt 0:01:21]} 53. Rf6 {[%emt 0:00:26]} (53. Rg5 $5 Re6 $8 54. Rg4+ Kc3 55. Kf4 Rgxg6 56. Rxg6 Rxg6 57. Rxe3+ Kxc2 58. Ke5 $11) 53... Ke5 $1 {[%emt 0:00:36]} 54. Rb6 {[%emt 0:00:47]} Kf5 {[%emt 0:01:46]} 55. Kf3 {[%emt 0:00:53]} Re5 $2 {[%emt 0:02:29][%mdl 8192]} (55... Rge7 $11) 56. Rxe3 $18 {[%emt 0:00:30]} (56. Rxb4 Rxg6 57. Rf4+ (57. Rxe3 Rg3+ 58. Kxg3 Rxe3+ 59. Kh4 Ke5 $16) 57... Ke6 58. Rxe3 Rg3+ 59. Kxg3 Rxe3+ 60. Rf3 Re2 $18 (60... Rxf3+ $2 61. Kxf3 Ke5 62. c3 $18)) 56... Rc7 {[%emt 0:00:26]} 57. Rxe5+ {[%emt 0:00:58]} (57. Rxb4 Rxe3+ 58. Kxe3 Kxg6 $16) 57... Kxe5 {[%emt 0:00:01]} 58. Rxb4 {[%emt 0:01:20]} Rc3+ {[%emt 0:00:03]} 59. Ke2 {[%emt 0:00:47]} Rxc2+ {[%emt 0:00:33]} 60. Kd1 {[%emt 0:00:19]} Rh2 {[%emt 0:01:26]} 61. g7 {[%emt 0:00:16]} Rh1+ {[%emt 0:00:15]} 62. Ke2 {[%emt 0:00:12]} Rg1 {[%emt 0:00:24]} 63. Rg4 {[%emt 0:00:07]} 1-0

[Event "LEM Niedersachsen-Meister 2025"]
[Site "Verden"]
[Date "2025.01.02"]
[Round "2.3"]
[White "Nechitaylo, Nikita"]
[Black "Hoeffer, David"]
[Result "1-0"]
[ECO "C56"]
[WhiteElo "2239"]
[BlackElo "2322"]
[Annotator "TA"]
[PlyCount "103"]
[EventDate "2024.12.27"]
[EventType "swiss"]
[EventCountry "GER"]
[SourceTitle "playchess.com"]
[Source "ChessBase"]
[SourceQuality "1"]
[TimeControl "40/5400+30:1800+30"]

{[%evp 22,102,0,-10,9,0,18,-8,-14,-16,15,8,6,7,9,-39,0,0,60,0,0,-47,-47,-64,0,-121,-87,-187,0,0,0,0,0,0,0,0,0,0,0,0,0,0,0,0,22,0,0,0,0,0,0,0,0,0,0,0,127,0,719,701,695,687,641,586,558,189,5133,5114,29975,29951,29984,29985,29988,29989,29989,29990,29995,29996,29997,29998,29998,29999,29999]} 1. e4 {[%emt 0:00:04]} e5 {[%emt 0:00:48]} 2. Nf3 {[%emt 0:00:02]} Nc6 {[%emt 0:00:06]} 3. Bc4 {[%emt 0:00:03]} Nf6 {[%emt 0:00:06]} 4. d4 {[%emt 0:00:02]} exd4 {[%emt 0:00:11]} 5. e5 {[%emt 0:00:04]} d5 {[%emt 0:00:07]} 6. Bb5 {[%emt 0:00:05]} Ne4 {[%emt 0:00:04]} 7. Nxd4 {[%emt 0:00:03]} Bd7 {[%emt 0:00:06]} 8. Bxc6 {[%emt 0:00:07]} bxc6 {[%emt 0:00:03]} 9. O-O {[%emt 0:00:06]} Bc5 {[%emt 0:00:11]} 10. f3 {[%emt 0:00:09]} Ng5 {[%emt 0:00:05]} 11. f4 {[%emt 0:00:04]} Ne4 {[%emt 0:00:06]} 12. Be3 {[%emt 0:00:41]} Bb6 {[%emt 0:00:06]} 13. a4 {[%emt 0:01:37]} c5 {[%emt 0:02:46]} 14. Nb3 {[%emt 0:03:10]} d4 {[%emt 0:00:12] The position is equal.} 15. Bf2 {[%emt 0:03:14]} a5 {[%emt 0:00:54] White must now prevent ...Nxf2.} (15... c4 $5 16. a5 cxb3 (16... Nxf2 17. Rxf2 cxb3 18. axb6 $11) 17. axb6 axb6 18. Rxa8 Qxa8 19. Bxd4 O-O $15) 16. N1d2 {[%emt 0:00:55]} Nxd2 {[%emt 0:04:32]} 17. Nxd2 {[%emt 0:00:35]} Bc6 {[%emt 0:00:23]} 18. c4 {[%emt 0:08:07]} (18. b3 $11) 18... Qd7 {[%emt 0:00:32]} 19. Bh4 {[%emt 0:07:14]} Qe6 {[%emt 0:11:12]} ({Better is} 19... Qf5 $1 $11) 20. Qh5 {[%emt 0:06:44]} (20. f5 $14 Qh6 (20... Qxe5 $2 21. Re1 $18) 21. Qg4) 20... Qg6 $11 {[%emt 0:02:25]} 21. Qxg6 {[%emt 0:05:38]} (21. Qe2 $1 $11) 21... hxg6 $15 {[%emt 0:00:10]} (21... fxg6 $6 22. e6 $16) 22. Bg5 {[%emt 0:02:33]} Kd7 {[%emt 0:03:05]} (22... Bd7 $15) 23. Nf3 {[%emt 0:03:57]} (23. f5 $1 $11) 23... Ke6 {[%emt 0:06:36]} 24. g4 {[%emt 0:04:31]} (24. Nh4 $17) 24... f5 $2 {[%emt 0:14:50]} (24... f6 $1 $19 {...Bxf3 is the strong threat.} 25. exf6 gxf6 26. Rae1+ Kf7 27. Ne5+ fxe5 28. fxe5+ Ke6 29. Rf6+ Kd7 30. e6+ Kc8) 25. Nh4 $11 {[%emt 0:11:03]} Be8 {[%emt 0:06:24]} 26. h3 {[%emt 0:00:32]} Rb8 {[%emt 0:00:19]} 27. b3 {[%emt 0:01:59]} Ba7 {[%emt 0:03:25]} 28. Rf3 {[%emt 0:00:34]} Rb6 {[%emt 0:05:05]} 29. Kf2 {[%emt 0:11:38]} Bf7 {[%emt 0:01:28]} 30. Rg1 {[%emt 0:02:56]} Rhb8 {[%emt 0:00:08]} 31. Rgg3 {[%emt 0:00:03]} Be8 {[%emt 0:00:14]} 32. Rd3 {[%emt 0:00:06]} Bc6 {[%emt 0:10:20] aiming for ...Be4.} 33. Nxg6 {[%emt 0:01:14][%cal Bh4g6,Bg6e7,Be7c6][%mdl 32]} (33. gxf5+ {looks sharper.} gxf5 34. Bd8 Kd7 35. Bxc7 Kxc7 36. Rxg7+ Bd7 37. Rdg3) 33... Be4 {[%emt 0:00:09]} 34. Ne7 {[%emt 0:02:00] The board is on fire.} Bxd3 {[%emt 0:00:32]} 35. Rxd3 {[%emt 0:00:04]} fxg4 {[%emt 0:00:06]} (35... Rxb3 $2 36. gxf5+ Kf7 37. e6+ Kf8 38. Ng6+ Kg8 39. Rxb3 Rxb3 40. Ne5 $18) 36. hxg4 {[%emt 0:00:03]} Rxb3 {[%emt 0:00:07]} 37. Rxb3 {[%emt 0:00:34]} Rxb3 {[%emt 0:00:04][%mdl 4096] Endgame. KRB-KBN} 38. Nc6 {[%emt 0:01:57] Hoping for f5+.} Bb6 {[%emt 0:02:10]} (38... Bb8 $11 {remains equal.}) 39. f5+ $16 {[%emt 0:00:04]} Kd7 $2 {[%emt 0:00:04][%mdl 8192] [#]} (39... Kf7 $11) 40. f6 $1 $18 {[%emt 0:00:01]} gxf6 {[%emt 0:30:19]} 41. exf6 {[%emt 0:30:03]} Rb2+ {[%emt 0:01:41]} 42. Kg3 {[%emt 0:02:42]} Rb3+ {[%emt 0:11:29]} 43. Kf4 $2 {[%emt 0:00:09]} (43. Kg2 Rb2+ (43... Kxc6 $2 44. f7 $18) 44. Kg3 Rb3+ (44... Kxc6 $2 45. f7 $18) 45. Kf4) 43... Rb1 $2 {[%emt 0:07:27] [#]} (43... Kxc6 $2 44. f7 $18) (43... Rh3) 44. Kf5 $1 {[%emt 0:00:07]} Rf1+ {[%emt 0:00:12]} (44... Kxc6 45. f7) 45. Bf4 {[%emt 0:00:04] White mates.} Ke8 {[%emt 0:00:09] [#]} 46. g5 $1 {[%emt 0:03:54][%cal Bg4g5,Bg5g6,Bg6g7,Bg7g8][%mdl 32]} ({Worse is} 46. Ne5 c6 47. g5 (47. Nxc6 $2 {is the wrong capture.} d3 $19) 47... Bc7 $11) 46... d3 {[%emt 0:00:15]} 47. g6 {[%emt 0:00:08]} d2 {[%emt 0:01:32]} 48. g7 {[%emt 0:00:52]} Rg1 {[%emt 0:02:56]} 49. Ke6 {[%emt 0:00:15][%csl Ge6][%cal Rf6f7]} Re1+ {[%emt 0:00:13]} 50. Be5 {[%emt 0:00:09]} Rxe5+ {[%emt 0:00:06]} 51. Nxe5 {[%emt 0:00:03][%cal Rg7g8]} d1=B {[%emt 0:00:14]} 52. g8=R# {[%emt 0:00:06] Weighted Error Value: White=0.23 (precise) /Black=0.32.  Loses game:     	---       	Black=1      Missed win:     	---       	Black=1      Mistake:       	White=5     	Black=4      Inaccurate:     	White=1     	Black=3      OK:         	White=12    	Black=9      Best:        	White=2     	Black=2      Strong:       	White=1     	---} 1-0

[Event "LEM Niedersachsen-Meister 2025"]
[Site "Verden"]
[Date "2025.01.02"]
[Round "2.4"]
[White "Lammers, Markus"]
[Black "Bruns, Kai-Christian"]
[Result "0-1"]
[ECO "D30"]
[WhiteElo "2304"]
[BlackElo "2157"]
[Annotator "TA"]
[PlyCount "128"]
[EventDate "2024.12.27"]
[EventType "swiss"]
[EventCountry "GER"]
[SourceTitle "playchess.com"]
[Source "ChessBase"]
[SourceQuality "1"]
[TimeControl "40/5400+30:1800+30"]

{[%evp 9,128,11,39,38,36,31,35,33,31,27,30,14,36,29,45,35,37,30,50,49,49,48,45,39,56,45,46,47,63,38,47,13,2,-8,0,0,-6,-14,-5,-19,-20,-26,-27,-28,-22,-22,-22,-29,-29,-25,-24,-31,-24,-33,0,-33,0,-25,0,-66,0,0,0,0,0,0,0,0,0,0,0,0,0,0,0,0,0,0,64,54,243,64,78,0,1112,1083,1055,1004,939,472,453,449,447,468,408,433,437,460,456,507,637,631,783,387,840,737,5414,1789,1263,733,1019,531,527,-679,-616,-29987,-29985,-29988,-29989,-29995,-29996]} 1. Nf3 {[%emt 0:00:05]} d5 {[%emt 0:00:11]} 2. c4 {[%emt 0:00:05]} c6 {[%emt 0:00:05]} 3. d4 {[%emt 0:00:06]} Nf6 {[%emt 0:00:05]} 4. e3 {[%emt 0:00:04]} e6 {[%emt 0:00:14]} 5. b3 {[%emt 0:00:06]} Ne4 {[%emt 0:01:00]} 6. Bd3 {[%emt 0:00:06]} Bb4+ {[%emt 0:00:17]} 7. Nbd2 {[%emt 0:00:02][%cal Bb1d2,Bd2f3,Bf3e5][%mdl 32]} Nd7 {[%emt 0:03:25]} 8. Bb2 {[%emt 0:00:30]} f5 {[%emt 0:00:39]} 9. a3 {[%emt 0:00:13]} Bd6 {[%emt 0:01:27]} 10. Ne5 {[%emt 0:00:08]} Qf6 {[%emt 0:10:42]} 11. Ndf3 {[%emt 0:00:18]} a5 {[%emt 0:01:23]} 12. Nxd7 {[%emt 0:02:49]} Bxd7 {[%emt 0:00:13]} 13. Ne5 {[%emt 0:00:04]} Bc8 {[%emt 0:15:30]} 14. O-O {[%emt 0:05:18]} O-O {[%emt 0:03:32]} 15. Qc2 {[%emt 0:02:22]} Qe7 {[%emt 0:12:18]} 16. f3 {[%emt 0:07:31][%cal Bf2f3,Bf3f4,Bf4e5][%mdl 32]} Ng5 {[%emt 0:03:37]} 17. Bc3 {[%emt 0:17:31]} Nf7 {[%emt 0:05:35]} 18. f4 {[%emt 0:06:58]} Bd7 {[%emt 0:05:39]} 19. Qb2 {[%emt 0:05:59]} b5 {[%emt 0:01:42]} 20. c5 {[%emt 0:08:21]} Bxe5 {[%emt 0:03:55]} 21. fxe5 {[%emt 0:00:24]} Ng5 {[%emt 0:00:37]} 22. Qe2 {[%emt 0:09:19]} Ne4 {[%emt 0:09:45]} 23. Bxe4 {[%emt 0:00:14]} (23. Be1 {is interesting.} a4 24. Qb2 Qg5 25. Rf4) 23... dxe4 {[%emt 0:01:21]} 24. Kh1 {[%emt 0:05:05]} Be8 {[%emt 0:02:17]} 25. Rf4 {[%emt 0:03:56]} g5 {[%emt 0:02:28]} 26. Rf2 {[%emt 0:00:13]} Bg6 {[%emt 0:00:55]} 27. Raf1 {[%emt 0:00:29]} a4 {[%emt 0:00:37]} 28. bxa4 {[%emt 0:04:01]} Rxa4 {[%emt 0:00:17]} 29. Bb4 {[%emt 0:00:07] White is weak on the light squares} h5 {[%emt 0:03:05]} 30. g3 {[%emt 0:02:08]} Raa8 {[%emt 0:00:26]} 31. h3 {[%emt 0:00:15]} g4 {[%emt 0:01:26]} 32. Rh2 {[%emt 0:07:43]} Kg7 {[%emt 0:02:30]} 33. Kg2 {[%emt 0:02:52]} Rh8 {[%emt 0:03:15]} 34. Qb2 {[%emt 0:02:51]} (34. h4 $11) 34... Rhd8 {[%emt 0:01:10]} (34... h4 $15 35. Qf2 (35. hxg4 $2 hxg3 36. Kxg3 Rxh2 $19) 35... hxg3 36. Qxg3 Rh4) 35. hxg4 $11 {[%emt 0:02:24]} hxg4 {[%emt 0:00:18]} 36. Rfh1 {[%emt 0:00:21]} Rd7 {[%emt 0:02:11]} 37. Kf1 {[%emt 0:02:54]} Qg5 {[%emt 0:00:34] Active counter play!} 38. Qb3 {[%emt 0:01:17]} Re7 {[%emt 0:00:53]} 39. Ke2 {[%emt 0:01:00]} Ree8 {[%emt 0:00:42]} 40. Kd2 {[%emt 0:01:40]} Qe7 {[%emt 0:02:17]} 41. Qb2 {[%emt 0:05:20]} Qd8 {[%emt 0:03:14]} 42. Kc1 {[%emt 0:03:10]} Qd5 {[%emt 0:03:50]} 43. Qf2 {[%emt 0:06:09]} Rg8 {[%emt 0:09:15]} (43... Rh8 $11) 44. Qf4 $1 $14 {[%emt 0:03:06]} Qd8 $2 {[%emt 0:01:27] [#] Dodges Qg5} (44... Kf7 $14) 45. Rh6 $2 {[%emt 0:04:02]} (45. d5 $1 $18 {[%cal Oh2h7] White threatens Rh7+! and mate.} cxd5 (45... Qxd5 $2 46. Rd1 $18) 46. c6) 45... Kf7 $1 {[%emt 0:02:20]} 46. R1h4 {[%emt 0:01:35]} ({Better is} 46. R1h2 $16) 46... Kg7 $2 {[%emt 0:02:07][%mdl 8192] [#]} (46... Qd5 $11) 47. Rxg6+ $1 $18 {[%emt 0:01:47][%mdl 512]} Kxg6 {[%emt 0:00:06]} 48. Rh6+ {[%emt 0:00:08]} Kg7 {[%emt 0:05:51]} 49. Rxe6 {[%emt 0:00:03]} Rh8 {[%emt 0:01:14][%cal Oa8a3]} 50. Qxf5 {[%emt 0:00:48]} (50. Rxc6 Rh1+ 51. Kc2 Rh2+ 52. Kd1 Rh1+ 53. Ke2 Rh2+ 54. Ke1 Rxa3 55. Bxa3 Qa5+ 56. Kf1 Rh1+ 57. Kg2 Rh5 $11) 50... Rh1+ {[%emt 0:01:00]} 51. Kc2 {[%emt 0:00:07]} Rh2+ {[%emt 0:00:54]} 52. Kd1 {[%emt 0:02:27]} Rh1+ {[%emt 0:00:01]} 53. Ke2 {[%emt 0:00:25]} Rh2+ {[%emt 0:01:14]} 54. Kf1 {[%emt 0:01:08]} Kh8 {[%emt 0:02:24]} 55. Kg1 {[%emt 0:02:52]} (55. Qxg4 Qd5 56. Qf5 Rh7 $11 (56... Rg8 $2 57. Qf6+ Rg7 58. Qf8+ Kh7 59. Qf5+ Kh8 60. Re8+ $18)) (55. Qxe4 Qg8 56. Rf6 (56. Rxc6 Rf8+ 57. Rf6 Rxf6+ 58. exf6 Qa2 $11) (56. Qxc6 $2 Ra6 $19) 56... Qc4+ 57. Kg1 Rh3 $11) 55... Rh7 {[%emt 0:00:27]} 56. Qxe4 {[%emt 0:02:40]} (56. Rxc6 $142 Qd7 57. Qxd7 (57. Qxe4 Rf8 $18) 57... Rxd7 58. Rd6) 56... Qd7 $2 {[%emt 0:02:03]} (56... Qg8 57. Rxc6 (57. Qxc6 Rc8 $11) 57... Qa2) 57. Qxc6 {[%emt 0:00:27]} Qa7 {[%emt 0:01:14]} 58. Rg6 {[%emt 0:01:14]} (58. Re8+ $142 Rxe8 59. Qxe8+ Kg7 60. c6 (60. Qxb5 Qf7 $18)) 58... Rf8 {[%emt 0:00:16]} 59. Rf6 {[%emt 0:00:34]} (59. Rxg4 $2 {is the wrong capture.} Qa4 60. Rh4 (60. Be1 $2 Qd1 $19) 60... Qd1+ 61. Kh2 Rxh4+ 62. gxh4 Rf2+ $19) ({And not} 59. Qxb5 Rh1+ 60. Kxh1 (60. Kg2 $2 {gets mated.} Qh7) 60... Qh7+ 61. Kg1 Qxg6 $11) 59... Rg8 {[%emt 0:00:10]} 60. Qxb5 {[%emt 0:02:01]} Rh3 {[%emt 0:00:35]} 61. Kf2 $4 {[%emt 0:00:58][%mdl 8192]} (61. Qc6 $18 Qg7 62. Be1) 61... Qh7 $19 {[%emt 0:00:10] ( -> ...Rh2+)} 62. Bd2 {[%emt 0:00:47] Strongly threatening Ke2.} Qc2 {[%emt 0:01:26]} 63. Ke1 {[%emt 0:00:20]} Rh2 {[%emt 0:00:23]} 64. Qb4 {[%emt 0:00:33]} Qd3 {[%emt 0:00:20]} 0-1

[Event "LEM Niedersachsen-Meister 2025"]
[Site "Verden"]
[Date "2025.01.02"]
[Round "2.5"]
[White "ter Stal, Lars"]
[Black "Giorgadze, Giorgi Gel"]
[Result "1/2-1/2"]
[ECO "C10"]
[WhiteElo "1815"]
[BlackElo "2569"]
[Annotator "TA"]
[PlyCount "66"]
[EventDate "2024.12.27"]
[EventType "swiss"]
[EventCountry "GER"]
[SourceTitle "playchess.com"]
[Source "ChessBase"]
[SourceQuality "1"]
[TimeControl "40/5400+30:1800+30"]

{[%evp 15,66,22,29,0,0,7,18,20,55,0,46,41,63,44,58,41,118,156,154,151,176,164,153,147,146,160,181,174,202,202,189,52,47,56,52,50,68,70,50,50,42,-30,-22,-24,0,-55,-55,-49,-23,-27,-16,-11,0]} 1. e4 {[%emt 0:00:02]} e6 {[%emt 0:00:06]} 2. d4 {[%emt 0:00:08]} d5 {[%emt 0:00:05]} 3. Nd2 {[%emt 0:00:10]} dxe4 {[%emt 0:00:50]} 4. Nxe4 {[%emt 0:00:11]} Nd7 {[%emt 0:00:03]} 5. Nf3 {[%emt 0:01:59]} Ngf6 {[%emt 0:00:07]} 6. Nxf6+ {[%emt 0:05:55]} Nxf6 {[%emt 1:32:19]} 7. Bc4 {[%emt 0:03:40]} Be7 {[%emt 0:00:00]} 8. O-O {[%emt 0:00:27]} O-O {[%emt 0:00:00]} 9. Re1 {[%emt 0:02:42]} b6 {[%emt 0:00:00]} 10. Qe2 {[%emt 0:05:45]} Bb7 {[%emt 0:00:00]} 11. c3 {[%emt 0:01:31]} Nd5 {[%emt 0:00:00]} 12. Bb3 {[%emt 0:08:56]} (12. Bd3 $14) 12... Bf6 {[%emt 0:00:00]} (12... c5 $11) 13. Ne5 $14 {[%emt 0:06:45]} Qc8 {[%emt 0:00:00]} 14. Ng4 {[%emt 0:05:39] aiming for Bxd5.} Bd8 {[%emt 0:00:00]} 15. Bc2 {[%emt 0:10:38]} Nf6 {[%emt 0:00:00] [#]} (15... c5 $14) 16. Qd3 $1 $16 {[%emt 0:00:31] Nxf6+ would kill now.} g6 {[%emt 0:00:00]} 17. Ne5 $36 {[%emt 0:03:34][%mdl 2048] White is on the roll.} Nd7 {[%emt 0:00:00]} 18. Bh6 {[%emt 0:09:24]} Nxe5 {[%emt 0:00:00]} 19. dxe5 {[%emt 0:00:22]} ({Don't do} 19. Rxe5 $6 Bf6 $14) 19... Re8 {[%emt 0:00:00]} 20. Qg3 {[%emt 0:07:12] White has more active pieces. The black rooks are passive.} Be7 {[%emt 0:00:00]} 21. h4 {[%emt 0:00:25]} Bf8 {[%emt 0:00:00] [#]} 22. Bg5 {[%emt 0:04:06]} Be7 {[%emt 0:00:00] [#]} 23. h5 {[%emt 0:01:28]} Bxg5 $14 {[%emt 0:00:00]} 24. Qxg5 {[%emt 0:00:10][%cal Rh5g6] And now hxg6 would win.} Qd8 {[%emt 0:09:00]} 25. Qg4 {[%emt 0:03:57][%cal Rh5g6] hxg6 is the strong threat.} Qd2 {[%emt 0:00:00]} 26. Re2 {[%emt 0:04:45]} Qh6 {[%emt 0:00:00]} 27. hxg6 {[%emt 0:00:12]} hxg6 {[%emt 0:00:00]} 28. Be4 {[%emt 0:02:17]} (28. Re3 $14) 28... Bxe4 $11 {[%emt 0:00:00]} 29. Rxe4 {[%emt 0:00:08][%cal Be2e4,Be4h4,Bh4d4,Bd4d1][%mdl 32]} Kg7 {[%emt 0:00:00]} 30. Qh4 {[%emt 0:01:20]} (30. Re3 $11) 30... Qxh4 $15 {[%emt 0:00:00]} 31. Rxh4 {[%emt 0:00:06]} Red8 {[%emt 0:00:00]} 32. Rd4 {[%emt 0:00:57]} c5 {[%emt 0:00:00]} 33. Rdd1 {[%emt 0:00:41]} g5 {[%emt 0:00:00] Black escapes into a draw.   Weighted Error Value: White=0.23 (precise) /Black=0.14 (very precise) .  Mistake:       	White=4     	Black=2      Inaccurate:     	---       	Black=2      OK:         	White=9     	Black=6      Best:        	White=3     	Black=4      Strong:       	White=1     	---} 1/2-1/2